Cogmind - Beta 13 @@@ ROGUE MODE // 2024.05.25 @ 12:56:01 Player: Barbarossa Result: Destroyed by G-34 Mercenary with Small Laser Performance ------------- Evolutions (1) 500 Regions Visited (2) 400 Robots Destroyed (22) 110 Value Destroyed (419) 419 Prototype IDs (0) 0 Alien Tech Used (0) 0 Bonus (0) 0 TOTAL SCORE: 1429 Bonus ------- None Cogmind --------- Core Integrity 0/400 Matter 250/300 Energy 62/125 System Corruption 0% Temperature Cool (12) Movement Flying (27) Location -9/Materials Parts ------- > --- POWER (1) -------- Light Ion Engine > --- PROPULSION (4) --- Flight Unit VTOL Module VTOL Module VTOL Module > --- UTILITY (2) ------ Medium Storage Unit > --- WEAPON (2) ------- Light Assault Rifle > --- INVENTORY (10) --- Small Storage Unit Large Battery (200) Visual Processing Unit Signal Interpreter Hacking Suite Peak State ------------ > --- POWER ------------ Light Ion Engine > --- PROPULSION ------- VTOL Module VTOL Module VTOL Module VTOL Module > --- UTILITY ---------- Medium Storage Unit Large Battery > --- WEAPON ----------- EM Pulse Gun Medium Laser > --- INVENTORY -------- Wheel Compact Wheel Flight Unit Cooling System Small Storage Unit Signal Interpreter Hacking Suite Light Assault Rifle [Rating: 14] Favorites ----------- Power Light Ion Engine Engine Light Ion Engine Propulsion Aluminum Leg Leg Aluminum Leg Wheel Wheel Flight Unit VTOL Module Utility Large Battery Storage Large Battery Weapon Medium Laser Energy Gun Medium Laser Ballistic Gun Light Assault Rifle Build | -11 -10 -9 ------- Run | Yrd Mat Mat Slots Evolved 2 | . . 2 Power . | . . . Propulsion 2 | . . 2 Utility . | . . . Weapon . | . . . Parts Attached 21 | . 6 15 Power 3 | . 2 1 Engine 3 | . 2 1 Core . | . . . Reactor . | . . . Propulsion 13 | . 2 11 Treads . | . . . Leg . | . . . Wheel 4 | . 2 2 Hover . | . . . Flight 9 | . . 9 Utility 2 | . 2 . Device . | . . . Storage 2 | . 2 . Processor . | . . . Hackware . | . . . Protection . | . . . Artifact . | . . . Weapon 3 | . . 3 Energy Gun . | . . . Energy Cannon . | . . . Ballistic Gun 3 | . . 3 Ballistic Cannon . | . . . Launcher . | . . . Special Weapon . | . . . Impact Weapon . | . . . Slashing Weapon . | . . . Piercing Weapon . | . . . Special Melee Weapon . | . . . Unidentified Prototypes . | . . . Parts Lost 5 | . . 5 Power 1 | . . 1 Propulsion 3 | . . 3 Utility . | . . . Weapon 1 | . . 1 Highest Loss Streak 4 | . . 4 To Critical Strikes . | . . . Average Slot Usage (%) 86 | . 99 55 Engine 12 | . 14 9 Leg 8 | . 12 . Wheel 12 | . 15 4 Flight 5 | . . 18 Storage 22 | . 27 11 Energy Gun 21 | . 28 5 Ballistic Gun 1 | . . 5 Naked Turns . | . . . Heaviest Build 22 | 12 22 15 Greatest Support 26 | 20 26 16 Greatest Overweight (x) 4 | . . 4 Average Overweight (x) . | . . . Largest Inventory Capacity 10 | 8 10 10 Average Capacity 8 | 8 8 10 Most Carried 10 | 6 10 10 Average Carried 8 | 6 8 9 Final Capacity 10 | 8 10 10 Final Carried 10 | 6 10 5 Class Distribution -------------------- 85% | Mutant 14% | Sprinter Dominant Class ---------------- Mutant | -10/Materials Mutant | -9/Materials Resources | -11 -10 -9 ----------- Run | Yrd Mat Mat Matter Collected 368 | 200 50 118 Remotely . | . . . Salvage Created 717 | . 555 162 Parts 43 | . 28 15 Haulers Intercepted 1 | . 1 . Recyclers Shooed 1 | . 1 . Parts Field Recycled . | . . . Retrieved Matter . | . . . Parts Self-Destructed . | . . . Prevented . | . . . Kills | -11 -10 -9 ------- Run | Yrd Mat Mat Combat Hostiles Destroyed 14 | . 6 8 Guns 14 | . 6 8 Classes Destroyed 8 | . 6 2 Worker 2 | . 2 . Hauler 1 | . 1 . Recycler 2 | . 2 . Operator 1 | . 1 . Watcher 2 | . 2 . Swarmer 6 | . . 6 Grunt 7 | . 6 1 Duelist 1 | . . 1 Best Kill Streak 7 | . 3 7 Combat Bots Only 7 | . 2 7 Max Kills in Single Turn 1 | . 1 1 Gunslinging . | . . . Exploded . | . . . Melee . | . . . Uniques/NPCs Destroyed . | . . . Combat | -11 -10 -9 -------- Run | Yrd Mat Mat Hostile Shots Fired 105 | . 13 92 Missed 22 | . . 22 Damage Taken 1129 | . 201 928 Core 510 | . 102 408 Absorbed by Shields . | . . . Core Remaining (%) 79 | 100 59 . Volleys Fired 71 | . 32 39 Largest 2 | . 2 2 Hottest 90 | . 90 50 Shots Fired 105 | . 64 41 Gun 105 | . 64 41 Cannon . | . . . Launcher . | . . . Special . | . . . Kinetic 33 | . . 33 Thermal 40 | . 32 8 Explosive . | . . . Electromagnetic 32 | . 32 . Robot Hit Streak 11 | . 10 11 Robot Miss Streak 5 | . 5 4 Penetration Max . | . . . Secondary Targets . | . . . Shots Hit Robots 72 | . 44 28 Core Hits 35 | . 21 14 Critical Kills . | . . . Critical Parts Destroyed . | . . . Critical Strikes 5 | . 5 . Burn 4 | . 4 . Corrupt 1 | . 1 . Melee Attacks . | . . . Impact . | . . . Slashing . | . . . Piercing . | . . . Sneak Attacks . | . . . Combat Hostiles . | . . . Follow-up Attacks . | . . . Damage Inflicted 968 | . 712 256 Guns 879 | . 623 256 Cannons . | . . . Explosions 89 | . 89 . Melee . | . . . Ramming . | . . . Kinetic 168 | . . 168 Thermal 492 | . 404 88 Explosive . | . . . Electromagnetic 308 | . 308 . Impact . | . . . Slashing . | . . . Piercing . | . . . Highest Corruption . | . . . Average Corruption . | . . . Corruption Purged . | . . . Corruption Blocked . | . . . Overload Shots . | . . . Overflow Damage 17 | . 17 . Projectiles . | . . . Explosions 17 | . 17 . Melee . | . . . Knockbacks . | . . . Impact . | . . . Kinetic . | . . . Secondary . | . . . Self-Inflicted Damage 61 | . 61 . Shots 2 | . 2 . Rammed . | . . . Targets Rammed . | . . . Kicked . | . . . Crushed . | . . . Highest Temperature 246 | . 246 58 Average Temperature 72 | . 82 19 Received Heat Transfer 312 | . 78 234 Siege Activations . | . . . Robots Corrupted . | . . . Combat Hostiles . | . . . Parts Fried . | . . . Impact Corruptions . | . . . Robots Melted . | . . . Combat Hostiles . | . . . Parts Melted 1 | . 1 . Heat Transferred 1580 | . 1321 259 Parts Sabotaged . | . . . Parts Stolen . | . . . Parts Stripped . | . . . Power Chain Reactions 2 | . 2 . Alert | -11 -10 -9 ------- Run | Yrd Mat Mat Peak Influence 275 | . 222 275 Initial 13 | . . 13 Average 116 | . 96 166 Maximum Alert Level 1 | . 1 1 Low Security (%) 64 | 100 74 41 Level 1 35 | . 26 58 Level 2 . | . . . Level 3 . | . . . Level 4 . | . . . Level 5 . | . . . High Security . | . . . Max Security . | . . . Squads Dispatched 4 | . 3 1 Investigation 2 | . 1 1 Extermination . | . . . Reinforcement 2 | . 2 . Assault . | . . . Garrison . | . . . Intercept . | . . . Searches Triggered . | . . . Construction Impeded . | . . . Haulers Reinforced . | . . . Active Scanning Responses . | . . . Cargo Convoy Interrupts . | . . . Stealth | -11 -10 -9 --------- Run | Yrd Mat Mat Distress Signals 3 | . . 3 Communications Jammed . | . . . Distress Signals . | . . . Times Spotted 31 | . 12 19 Peak Tracking Total 13 | . 3 13 Tactical Retreats 2 | . . 2 Traps | -11 -10 -9 ------- Run | Yrd Mat Mat Traps Triggered 1 | . 1 . Indirectly . | . . . Trap Hack Attempts . | . . . Triggered . | . . . Disarmed . | . . . Reprogrammed . | . . . Reused . | . . . Traps Extracted . | . . . Installed . | . . . Triggered . | . . . Machines | -11 -10 -9 ---------- Run | Yrd Mat Mat Machines Disabled 1 | . 1 . Max in Single Turn 1 | . 1 . Machines Repaired . | . . . Machines Dismantled . | . . . Machines Sabotaged . | . . . Overloaded Fab Kills . | . . . Hacking | -11 -10 -9 --------- Run | Yrd Mat Mat Machines Accessed 5 | . 1 4 Terminals 4 | . 1 3 Fabricators . | . . . Repair Stations . | . . . Recycling Units . | . . . Scanalyzers 1 | . . 1 Garrison Access . | . . . Total Hacks 15 | . 2 13 Successful 7 | . . 7 Failed 8 | . 2 6 Catastrophic 2 | . . 2 Database Lockouts . | . . . Manual 11 | . 2 9 Terminals 11 | . 2 9 Fabricators . | . . . Repair Stations . | . . . Recycling Units . | . . . Scanalyzers 4 | . . 4 Garrison Access . | . . . Terminal Hacks . | . . . Fabricator Hacks . | . . . Repair Station Hacks . | . . . Recycling Unit Hacks . | . . . Scanalyzer 4 | . . 4 Insert Component 2 | . . 2 Analyze 2 | . . 2 Garrison Access Hacks . | . . . Unauthorized Hacks 3 | . . 3 Terminals 3 | . . 3 Botnet 3 | . . 3 Fabricators . | . . . Repair Stations . | . . . Recycling Units . | . . . Scanalyzers . | . . . Garrison Access . | . . . Data Cores Recovered . | . . . Used . | . . . Hacking Detections 5 | . 1 4 Full Trace Events 1 | . . 1 Feedback Events . | . . . Feedback Blocked . | . . . Robot Schematics Acquired . | . . . Robots Built . | . . . Authchips . | . . . Time . | . . . Total Robot Build Rating . | . . . Part Schematics Acquired 2 | . . 2 Parts Built . | . . . Authchips . | . . . Time . | . . . Total Part Build Rating . | . . . Parts Repaired . | . . . Time . | . . . Parts Recycled . | . . . Recycled Matter . | . . . Retrieved Matter . | . . . Retrieved Components . | . . . Parts Scanalyzed 2 | . . 2 Part Schematics Acquired 2 | . . 2 Parts Damaged 1 | . . 1 Bothacking | -11 -10 -9 ------------ Run | Yrd Mat Mat Used RIF Installer . | . . . Robots Hacked . | . . . Non-combat . | . . . Combat . | . . . Robot Hacks Applied . | . . . Relay Couplers Released . | . . . Fabnet Peak Effective % . | . . . Robots Rewired . | . . . Allies Hacked . | . . . Hacks Repelled . | . . . Allies | -11 -10 -9 -------- Run | Yrd Mat Mat Total Allies . | . . . Largest Group . | . . . Highest-Rated Group . | . . . Highest-Rated Ally . | . . . Total Orders . | . . . Ally Attacks . | . . . Total Damage . | . . . Kills . | . . . Allies Corrupted . | . . . Allies Melted . | . . . Intel | -11 -10 -9 ------- Run | Yrd Mat Mat Robot Analysis Total . | . . . Derelict Logs Recovered . | . . . Drone Launches . | . . . Drone Recoveries . | . . . Exploration | -11 -10 -9 ------------- Run | Yrd Mat Mat Turns Passed 647 | 5 450 192 Spaces Moved 512 | 5 282 225 Core 16 | . . 16 Treads . | . . . Legs 127 | 5 122 . Wheels 163 | . 160 3 Hover . | . . . Flight 206 | . . 206 Fastest Speed 26 | 120 90 26 Average Speed 76 | 120 102 42 Slowest Speed 250 | 120 120 250 Overloaded Moves . | . . . Propulsion Burnouts . | . . . Robots Hopped 4 | . . 4 Cave-ins Triggered . | . . . Exploration Rate (%) 28 | 2 45 38 Regions Visited 2 Branch Regions . Pre-discovered Areas . | . . . Known Exits Taken . | . . . Unknown Exits Taken 2 | 1 1 . Scrap Searched . | . . . Spaces Dug . | . . . Terrain Destroyed 4 | . 4 . Melee . | . . . Projectile . | . . . AOE 4 | . 4 . Terrain Rammed . | . . . Walls Destroyed . | . . . Machines Disabled . | . . . Actions | -11 -10 -9 --------- Run | Yrd Mat Mat Total 668 | 4 379 285 Wait 42 | . 40 2 Move 502 | 4 281 217 Hop 4 | . . 4 Pick Up 12 | . 11 1 Fast Attach 5 | . 2 3 Attach 10 | . . 10 Detach 5 | . . 5 Swap 6 | . 4 2 Drop 11 | . 9 2 Fire 71 | . 32 39 Melee . | . . . Ram . | . . . Kick . | . . . Crush . | . . . Escape Stasis . | . . . Rewire . | . . . Trap . | . . . Miscellaneous . | . . . Route ------- -11/Scrapyard -10/Materials (discovered 2 exits: *Mat / [*Min]) -9/Materials (discovered 1 exit: [*Min]) History --------- Turn | Location | Event 1 | -11/Scrapyard | Discovered new exit (range 3) 6 | -11/Scrapyard | Entered Materials 242 | -10/Materials | Discovered new exit (range 13) 309 | -10/Materials | Build established: Mutant 377 | -10/Materials | Discovered new exit (range 9) 456 | -10/Materials | Entered another Materials area 456 | -9/Materials | Evolved 2 slots: Propulsion x2 501 | -9/Materials | Discovered new exit (range 12) 589 | -9/Materials | Core integrity fell below 50% 602 | -9/Materials | Destroyed 7 combat bots 603 | -9/Materials | Core integrity fell below 20% 612 | -9/Materials | Lost 4 parts (1p2n1w) 648 | -9/Materials | Destroyed by G-34 Mercenary with Small Laser Last Messages --------------- 00563_ W-16 Scout sends out distress signal. 00566_ G-34 Mercenary destroyed. 00568_ Acquired 13 matter. 00570_ Acquired Lgt. Assault Rifle. 00572_ Lgt. Ion Engine destroyed. 00576_ Lgt. Assault Rifle severed. 00581_ Wheel destroyed. 00581_ S-10 Pest destroyed. 00588_ Lgt. Assault Rifle severed. 00592_ Acquired Lgt. Assault Rifle. 00602_ L-31 Rogue destroyed. 00603_ Acquired 42 matter. 00608_ Acquired Lgt. Ion Engine. 00613_ K-01 Serf cleans the Electrolysis Chamber. 00615_ Acquired 13 matter. 00619_ K-01 Serf collects debris. 00647_ Electrolysis Chamber disabled. 00647_ VTOL Module destroyed. 00647_ K-01 Serf collects debris. Map ----- +----------------------------------------------------+ | ??????????????????# +??????????? | | ??????????????????+ #??????????? | | ??????????????????# """ #??????????? | | ??????????????????# """ #??????????? | | ??????????????????# """ #??????????? | | ??????????????????# #??????????? | | ??????????????????# #??????????? | | ??????????????????# """ ########???? | | ??????????????????#/ """ # #???? | | ??????????????????# """ !# #???? | | ??????????????????+ # #???? | | ??????????????????# + """ #???? | | ??????????????????# """ # """ #???? | | ??????????????????# """ # """ #???? | | ??????????????????# """ ##+######### | | ?????????????????## #?#=* # | | ?????????????????"" % #?#%""" # | | ?????????????????"T """ #?# """ # | | ??????????????????" """ ###[""" # | | ??????????????????# """ %%# %=! # | | ??????????????????# *%+[""" # | | ??????????????????# =#*""" # | | ??????????????????# ######### #!""" # | | ??????????????????# # ! ## # # | | ??????????????????# ??# k /## # "T" # | | ??????????????????# # g@g ## # """ # | | ??????????????????# Y "" ## # # | | ??????????????????# # """ + ######? | | ??????????????????# ??# """ ## #?????? | | ??????????????????????######### #?????? | | ??????????????????????????????# #?????? | | ??????????????????????????????#+#?????? | | ??????????????????????????????????????? | | ??????????????????????????????????????? | | ??????????????????????????????????????? | | ??????????????????????????????????????? | | ??????????????????????????????????????? | | ??????????????????????????????????????? | | ??????????????????????????????????????? | | ??????????????????????????????????????? | | ??????????????????????????????????????? | | ??????????????????????????????????????? | | ??????????????????????????????????????? | | ??????????????????????????????????????? | | ??????????????????????????????????????? | | ??????????????????????????????????????? | | ??????????????????????????????????????? | | ??????????????????????????????????????? | | ??????????????????????????????????????? | | ??????????????????????????????????????? | +----------------------------------------------------+ Best States ------------- Heat Dissipation 28 Energy Generation 10 Energy Capacity 450 Matter Stores 300 Matter Capacity 300 Sight Range 16 Terrain Scan Density 10 Evasion (%) 64 Item Schematics ----------------- Cooling System | -9/Materials | Scanalyzed Signal Interpreter | -9/Materials | Scanalyzed Robot Schematics ------------------ None Fabricated ------------ Nothing Alien Tech Used ----------------- None Achievements -------------- None Challenges ------------ None Game ------ Seed MobilePotentialHammer Manual? 0 Play Time 00:10:34 Cumulative 192.6 hours Start 2024.05.25 @ 12:48:40 End 2024.05.25 @ 12:56:01 Sessions 1 Manual Loads 0 Difficulty Rogue Special Mode None Game No. 355 Rogue 355 Adventurer 0 Explorer 0 Win Type - Total 0 Types 0/0/0/0/0/0/0/0/0 Lore% 44 Gallery% 55 Achievement% 39 Wizard Run 0 Options --------- Layout 1 ASCII 0 Keyboard 0 Movement Mouse Keybinds 0 Fullscreen 1 Font 24/Smallcaps Map View 50x40 Zoom Use 0% Tactical HUD 1 Map Filters NONE Filters NONE Steam 1 RUN: 239159a4-d324-479c-a5ed-ffed48d5d9cc